[Event "4th ChessMates Murmansk 2020"]
[Site "Murmansk"]
[Date "2020.03.15"]
[Round "5.29"]
[White "Rombalskiy, Ivan"]
[Black "Matsumura, Cocoro"]
[Result "0-1"]
[ECO "B92"]
[WhiteElo "1298"]
[BlackElo "1896"]
[Annotator "NA RC"]
[PlyCount "100"]
[EventDate "2020.03.13"]
[EventType "team-tourn"]
[EventCountry "RUS"]
[SourceTitle "playchess.com"]
[Source "ChessBase"]
[SourceQuality "1"]
[TimeControl "5400+30"]

{[%evp 8,82,28,23,25,23,22,32767,0,0,7,-16,0,-20,-14,-8,-14,-8,-14,-10,32767,-37,-33,-47,-30,-75,-18,-18,-13,-18,-13,-26,-8,-24,-9,-9,-8,-26,-32,-79,-80,-91,-18,-44,-43,-60,-39,-43,0,-1,0,-35,6,-49,-67,-97,-108,-126,-114,-114,-130,-164,-140,-389,0,-264,-275,-331,-302,-293,32767,32767,-338,-381,-195,-359,0]} 1. e4 {[%emt 0:00:00]} c5 {[%emt 0:00:00]} 2. Nf3 {[%emt 0:00:00]} d6 {[%emt 0:00:00]} 3. d4 {[%emt 0:00:00]} cxd4 {[%emt 0:00:00]} 4. Nxd4 {[%emt 0:00:02]} Nf6 {[%emt 0:00:02]} 5. Nc3 {[%emt 0:00:11]} a6 {[%emt 0:00:06]} 6. Be2 {[%emt 0:00:59]} e5 {[%emt 0:01:49]} 7. Nf3 {[%emt 0:02:08]} Be7 {[%emt 0:00:27]} 8. O-O {[%emt 0:01:11] 8.Bg5 is more fashionable. Played by Ian Nepomniachtchi in November 2019.} O-O {[%emt 0:00:36]} 9. h3 {[%emt 0:00:58]} b5 {[%emt 0:00:22] B92: Sicilian Najdorf: 6 Be2.} 10. a3 {[%emt 0:01:50]} Bb7 {[%emt 0:01:26]} 11. Bd3 {[%emt 0:01:38]} Nbd7 {[%emt 0:05:52]} 12. Re1 {[%emt 0:03:42]} Rc8 {[%emt 0:01:41]} 13. Be3 {[%emt 0:04:22]} Qc7 {[%emt 0:04:43] [#]} 14. Nd2 $146 {[%emt 0:02:30]} ({Predecessor:} 14. Qd2 Nb6 15. Bxb6 Qxb6 16. Rad1 Rfe8 17. Qe3 Qxe3 18. Rxe3 Rc7 19. Re2 Rec8 20. Kf1 {½-½ (54) Anderson,J-Triplett,T Detroit 1992}) 14... Rfd8 {[%emt 0:03:53]} 15. Nb3 {[%emt 0:03:43]} Nc5 {[%emt 0:01:54]} 16. f3 {[%emt 0:01:01]} Nxb3 {[%emt 0:07:29]} 17. cxb3 {[%emt 0:00:12]} d5 {[%emt 0:00:37]} 18. exd5 {[%emt 0:01:30]} Nxd5 {[%emt 0:00:17]} 19. Nxd5 {[%emt 0:00:20]} Bxd5 {[%emt 0:02:49]} 20. Rc1 {[%emt 0:03:00]} Qb7 {[%emt 0:02:20]} 21. Rxc8 {[%emt 0:10:20]} Qxc8 {[%emt 0:01:22]} 22. Qb1 {[%emt 0:00:27]} g6 {[%emt 0:01:47]} 23. Rc1 {[%emt 0:00:10]} Qd7 {[%emt 0:03:09]} 24. Rc3 {[%emt 0:02:41]} f5 {[%emt 0:08:37]} ({Black should play} 24... b4 $17 25. Rc1 bxa3 26. bxa3 {[#]} Bxf3 $1 {[%mdl 512]}) 25. Qc2 {[%emt 0:02:16]} Qe6 {[%emt 0:03:10]} 26. b4 {[%emt 0:03:40]} e4 {[%emt 0:08:54]} 27. fxe4 {[%emt 0:02:18]} fxe4 {[%emt 0:00:34]} 28. Be2 {[%emt 0:00:21]} Bd6 {[%emt 0:04:34]} 29. Bd4 {[%emt 0:01:52]} Bb8 {[%emt 0:05:09]} 30. Bf2 {[%emt 0:01:27]} Rf8 {[%emt 0:07:28]} 31. Bg4 {[%emt 0:01:12]} Qe5 {[%emt 0:04:21]} 32. Bg3 {[%emt 0:02:12]} Ba7+ {[%emt 0:02:36]} 33. Kh2 {[%emt 0:00:52]} Qd4 {[%emt 0:00:45]} 34. Qd1 {[%emt 0:01:36]} (34. Qb1 $17) 34... Bc4 {[%emt 0:02:13]} 35. Bc7 $2 {[%emt 0:06:18]} (35. Rc1 $17 {might work better.}) 35... Rf1 $2 {[%emt 0:02:26] [#]} ({Black should try} 35... h5 $19 36. Qxd4 Bxd4 37. Rxc4 bxc4) 36. Qxd4 $4 {[%emt 0:00:10]} (36. Be6+ $1 $11 {[%mdl 512]} Kf8 (36... Bxe6 37. Qxf1) 37. Qxd4 Bxd4 38. Bxc4 bxc4 39. Rxc4) 36... Bxd4 {[%emt 0:00:00]} 37. Rc2 {[%emt 0:00:40]} e3 {[%emt 0:00:30]} 38. Bg3 {[%emt 0:01:12]} Rb1 {[%emt 0:01:18]} 39. Bf4 {[%emt 0:00:57]} Kf7 {[%emt 0:08:02]} ({But not} 39... Bxb2 40. Bxe3 Bxa3 41. Bc8 $19) ({Less strong is} 39... Rxb2 40. Rxb2 Bxb2 41. Bxe3 $15) 40. h4 {[%emt 0:01:36]} Rf1 {[%emt 0:02:11]} (40... Kf6 $142 41. Bf3 Kf5) 41. Bg3 {[%emt 0:00:28]} (41. Kg3 {was the only defense.}) 41... Rf2 $11 {[%emt 0:01:34]} (41... h5 $19 42. b3 Bxb3 43. Rc7+ Kg8) 42. Rc1 {[%emt 0:01:29]} Rxb2 {[%emt 0:00:22]} 43. Re1 {[%emt 0:00:09]} e2 {[%emt 0:00:57]} 44. Rc1 {[%emt 0:01:14]} Ra2 {[%emt 0:01:05]} 45. Be1 {[%emt 0:00:48]} Rxa3 {[%emt 0:00:43]} 46. Bf3 {[%emt 0:00:37]} Be3 {[%emt 0:00:29]} 47. Rc2 {[%emt 0:00:44]} Ra1 {[%emt 0:00:12]} 48. Rc3 {[%emt 0:00:12]} Bd4 {[%emt 0:00:29]} 49. Kg3 {[%emt 0:01:07]} Bxc3 {[%emt 0:00:12]} 50. Bxc3 {[%emt 0:00:10]} e1=Q+ {[%emt 0:00:05]} 0-1

[Event "4th ChessMates Murmansk 2020"]
[Site "Murmansk"]
[Date "2020.03.15"]
[Round "5.30"]
[White "Ider, Bayar"]
[Black "Ivashevskiy, Artem"]
[Result "0-1"]
[ECO "A48"]
[WhiteElo "1730"]
[BlackElo "1233"]
[Annotator "NA RC"]
[PlyCount "154"]
[EventDate "2020.03.13"]
[EventType "team-tourn"]
[EventCountry "RUS"]
[SourceTitle "playchess.com"]
[Source "ChessBase"]
[SourceQuality "1"]
[TimeControl "5400+30"]

1. d4 {[%emt 0:00:00]} Nf6 {[%emt 0:00:30]} 2. Nf3 {[%emt 0:00:00]} g6 {[%emt 0:00:40]} 3. e3 {[%emt 0:00:00]} Bg7 {[%emt 0:01:19]} 4. b4 {[%emt 0:00:00]} d6 {[%emt 0:01:56]} 5. Bb2 {[%emt 0:00:00]} O-O {[%emt 0:00:22]} 6. c4 {[%emt 0:00:09]} Nbd7 {[%emt 0:01:49]} 7. a4 {[%emt 0:00:21]} b6 {[%emt 0:04:20]} 8. Nc3 {[%emt 0:00:13]} c5 {[%emt 0:00:33]} 9. b5 {[%emt 0:00:05]} cxd4 {[%emt 0:00:23]} 10. Nxd4 {[%emt 0:00:04]} Bb7 {[%emt 0:00:21]} 11. a5 {[%emt 0:16:12]} Rc8 {[%emt 0:09:34]} 12. axb6 {[%emt 0:10:10]} axb6 {[%emt 0:00:08]} 13. Ra7 {[%emt 0:00:34]} Rc7 {[%emt 0:00:40]} 14. Ra1 {[%emt 0:02:43]} Ne5 {[%emt 0:00:43]} 15. Qb3 {[%emt 0:01:23]} Nfd7 {[%emt 0:01:18]} 16. Nd5 {[%emt 0:02:54]} Nc5 {[%emt 0:00:53]} 17. Qd1 {[%emt 0:00:10]} Rc8 {[%emt 0:01:18]} 18. f4 {[%emt 0:24:33]} Ned7 {[%emt 0:01:41]} 19. f5 {[%emt 0:08:13]} e6 {[%emt 0:06:51]} 20. Nc6 {[%emt 0:09:12]} Bxc6 {[%emt 0:02:35]} 21. Bxg7 {[%emt 0:01:11]} Kxg7 {[%emt 0:00:39]} 22. bxc6 {[%emt 0:00:17]} Ne5 {[%emt 0:00:41]} 23. f6+ {[%emt 0:00:47]} Kh8 {[%emt 0:00:25]} 24. Ne7 {[%emt 0:00:19]} Rc7 {[%emt 0:01:01]} 25. Rb1 {[%emt 0:11:48]} Ne4 {[%emt 0:01:43]} 26. g4 {[%emt 0:04:31]} Nxf6 {[%emt 0:00:24]} 27. g5 {[%emt 0:00:15]} Ne8 {[%emt 0:02:02]} 28. c5 {[%emt 0:00:42]} Qxe7 {[%emt 0:00:14]} 29. cxb6 {[%emt 0:00:06]} Rxc6 {[%emt 0:00:12]} 30. b7 {[%emt 0:00:04]} Nc7 {[%emt 0:10:54]} 31. b8=Q {[%emt 0:00:08]} Rxb8 {[%emt 0:00:06]} 32. Rxb8+ {[%emt 0:00:07]} Kg7 {[%emt 0:00:10]} 33. Bg2 {[%emt 0:00:56]} Rc1 {[%emt 0:01:01]} 34. Qxc1 {[%emt 0:00:29]} Nd3+ {[%emt 0:00:05]} 35. Ke2 {[%emt 0:00:04]} Nxc1+ {[%emt 0:00:18]} 36. Rxc1 {[%emt 0:00:05]} Qxg5 {[%emt 0:00:25]} 37. Bf3 {[%emt 0:00:32]} Nd5 {[%emt 0:00:21]} 38. Bxd5 {[%emt 0:00:30]} Qxd5 {[%emt 0:00:13]} 39. Rcc8 {[%emt 0:01:26]} Qg2+ {[%emt 0:00:21]} 40. Kd3 {[%emt 0:00:07]} Qxh2 {[%emt 0:01:14]} 41. Rg8+ {[%emt 0:00:18]} Kf6 {[%emt 0:03:37]} 42. Rgf8 {[%emt 0:00:14]} Qf2 {[%emt 0:00:28]} 43. Rbd8 {[%emt 0:00:34]} d5 {[%emt 0:00:35]} 44. Rd7 {[%emt 0:00:33]} Kg7 {[%emt 0:00:07]} 45. Rdd8 {[%emt 0:00:04]} h5 {[%emt 0:00:28]} 46. Rg8+ {[%emt 0:00:11]} Kf6 {[%emt 0:00:06]} 47. Rgf8 {[%emt 0:00:23]} h4 {[%emt 0:00:19]} 48. Kd4 {[%emt 0:00:16]} Qd2+ {[%emt 0:01:16]} 49. Kc5 {[%emt 0:00:07]} Qxe3+ {[%emt 0:00:05]} 50. Kd6 {[%emt 0:00:03]} Qb6+ {[%emt 0:00:46]} 51. Kd7 {[%emt 0:00:03]} d4 {[%emt 0:05:22]} 52. Ke8 {[%emt 0:00:45]} Qxd8+ {[%emt 0:01:27]} 53. Kxd8 {[%emt 0:00:06]} d3 {[%emt 0:01:39]} 54. Ke8 {[%emt 0:00:07]} d2 {[%emt 0:00:13]} 55. Rxf7+ {[%emt 0:00:07]} Ke5 {[%emt 0:00:10]} 56. Rd7 {[%emt 0:00:04]} g5 {[%emt 0:00:21]} 57. Rxd2 {[%emt 0:00:05]} Kf5 {[%emt 0:00:50]} 58. Kf7 {[%emt 0:00:06]} g4 {[%emt 0:03:18]} 59. Rf2+ {[%emt 0:00:12]} Kg5 {[%emt 0:00:05]} 60. Kxe6 {[%emt 0:00:05]} g3 {[%emt 0:07:28]} 61. Rf8 {[%emt 0:00:15]} h3 {[%emt 0:01:46]} 62. Ke5 {[%emt 0:00:28]} g2 {[%emt 0:01:36]} 63. Rg8+ {[%emt 0:00:12]} Kh6 {[%emt 0:00:09]} 64. Kf6 {[%emt 0:01:01]} Kh7 {[%emt 0:00:12]} 65. Rg7+ {[%emt 0:00:36]} Kh8 {[%emt 0:01:50]} 66. Rg3 {[%emt 0:03:36]} h2 {[%emt 0:00:06]} 67. Rxg2 {[%emt 0:02:19]} h1=Q {[%emt 0:00:09]} 68. Rg5 {[%emt 0:00:08]} Qh4 {[%emt 0:00:40]} 69. Kf5 {[%emt 0:00:18]} Kh7 {[%emt 0:00:58]} 70. Rg4 {[%emt 0:00:13]} Qf2+ {[%emt 0:00:35]} 71. Ke4 {[%emt 0:00:19]} Kh6 {[%emt 0:00:29]} 72. Rf4 {[%emt 0:00:08]} Qc2+ {[%emt 0:00:18]} 73. Ke5 {[%emt 0:00:56]} Kg5 {[%emt 0:00:08]} 74. Re4 {[%emt 0:00:10]} Qc5+ {[%emt 0:01:52]} 75. Ke6 {[%emt 0:00:06]} Qc6+ {[%emt 0:00:09]} 76. Ke5 {[%emt 0:00:32]} Qc5+ {[%emt 0:00:02]} 77. Ke6 {[%emt 0:00:11]} Qf5+ {[%emt 0:00:04]} 0-1